[Event "Live Chess"]
[Site "Chess.com"]
[Date "2024.06.02"]
[Round "-"]
[White "NeilDruggan73"]
[Black "MagnersCarlsberg2870"]
[Result "0-1"]
[WhiteElo "1783"]
[BlackElo "1829"]
[TimeControl "300"]
[EndTime "20:08:10 PDT"]
[Termination "MagnersCarlsberg2870 won by checkmate"]

1. d4 {[%clk 0:04:55.2]} 1... e5 {[%clk 0:04:56.2]} 2. dxe5 {[%clk 0:04:53.1]}
2... Nc6 {[%clk 0:04:50.8]} 3. Nf3 {[%clk 0:04:48.4]} 3... d6 {[%clk 0:04:44.4]}
4. exd6 {[%clk 0:04:43.3]} 4... Bxd6 {[%clk 0:04:43.6]} 5. c3 {[%clk 0:04:36.2]}
5... Nf6 {[%clk 0:04:42.3]} 6. g3 {[%clk 0:04:22.6]} 6... Ng4 {[%clk 0:04:40.9]}
7. Bg2 {[%clk 0:04:19.2]} 7... h5 {[%clk 0:04:36.6]} 8. h3 {[%clk 0:04:09]} 8...
Nge5 {[%clk 0:04:19.7]} 9. Be3 {[%clk 0:03:55.3]} 9... Nc4 {[%clk 0:04:15.7]}
10. Bc1 {[%clk 0:03:45.1]} 10... Qe7 {[%clk 0:04:06.8]} 11. b3 {[%clk
0:03:43.3]} 11... N4e5 {[%clk 0:04:03.7]} 12. O-O {[%clk 0:03:37]} 12... h4
{[%clk 0:03:55]} 13. g4 {[%clk 0:03:31.5]} 13... Nxg4 {[%clk 0:03:52]} 14. hxg4
{[%clk 0:03:29.1]} 14... h3 {[%clk 0:03:51.1]} 15. Bh1 {[%clk 0:03:24]} 15...
h2+ {[%clk 0:03:49.8]} 16. Kg2 {[%clk 0:03:22.6]} 16... Bxg4 {[%clk 0:03:47.7]}
17. Qd3 {[%clk 0:03:16.8]} 17... O-O-O {[%clk 0:03:44.2]} 18. Qe3 {[%clk
0:03:06.8]} 18... Bh3# {[%clk 0:03:42]} 0-1

[Event "Live Chess"]
[Site "Chess.com"]
[Date "2024.06.02"]
[Round "-"]
[White "juniortay"]
[Black "booktrunk"]
[Result "1-0"]
[WhiteElo "2425"]
[BlackElo "1510"]
[TimeControl "300"]
[EndTime "20:08:22 PDT"]
[Termination "juniortay won by resignation"]

1. e4 {[%clk 0:04:56.9]} 1... b6 {[%clk 0:04:56.2]} 2. Nf3 {[%clk 0:04:56.8]}
2... Bb7 {[%clk 0:04:54.7]} 3. Nc3 {[%clk 0:04:56.2]} 3... e6 {[%clk 0:04:52.7]}
4. a3 {[%clk 0:04:55.7]} 4... Nf6 {[%clk 0:04:51.8]} 5. e5 {[%clk 0:04:53.7]}
5... Nd5 {[%clk 0:04:49.9]} 6. d4 {[%clk 0:04:53.1]} 6... Nxc3 {[%clk
0:04:48.4]} 7. bxc3 {[%clk 0:04:52.2]} 7... h6 {[%clk 0:04:44.9]} 8. Bd3 {[%clk
0:04:51.1]} 8... Be7 {[%clk 0:04:41.8]} 9. Qe2 {[%clk 0:04:50.2]} 9... d6 {[%clk
0:04:33.4]} 10. Be4 {[%clk 0:04:48.7]} 10... Bxe4 {[%clk 0:04:30.8]} 11. Qxe4
{[%clk 0:04:47.4]} 11... d5 {[%clk 0:04:29.9]} 12. Qg4 {[%clk 0:04:46.7]} 12...
g6 {[%clk 0:04:21.3]} 13. h4 {[%clk 0:04:45.6]} 13... h5 {[%clk 0:04:19.2]} 14.
Qf4 {[%clk 0:04:44.2]} 14... Rf8 {[%clk 0:04:13.1]} 15. Ng5 {[%clk 0:04:37.6]}
15... Nc6 {[%clk 0:04:04.5]} 16. g4 {[%clk 0:04:34.1]} 16... Qd7 {[%clk
0:04:00.6]} 17. Nh7 {[%clk 0:04:12.7]} 17... Rh8 {[%clk 0:03:58.2]} 18. Nf6+
{[%clk 0:04:11.5]} 18... Bxf6 {[%clk 0:03:55.8]} 19. Qxf6 {[%clk 0:04:11.4]}
19... Rh7 {[%clk 0:03:50]} 20. Bg5 {[%clk 0:04:03.6]} 20... Qe7 {[%clk
0:03:44.3]} 21. Qf4 {[%clk 0:04:01.9]} 21... Qf8 {[%clk 0:03:41.2]} 22. Qf6
{[%clk 0:03:54.6]} 22... Qe7 {[%clk 0:03:38.2]} 23. Qf3 {[%clk 0:03:52.8]} 23...
Qf8 {[%clk 0:03:37]} 24. c4 {[%clk 0:03:52.3]} 24... Ne7 {[%clk 0:03:25.7]} 25.
cxd5 {[%clk 0:03:44.6]} 25... Nxd5 {[%clk 0:03:23.4]} 26. c4 {[%clk 0:03:43.4]}
26... Kd7 {[%clk 0:03:10]} 27. cxd5 {[%clk 0:03:42]} 27... b5 {[%clk 0:03:02.1]}
28. gxh5 {[%clk 0:03:35]} 28... Rxh5 {[%clk 0:02:59.7]} 29. Ke2 {[%clk
0:03:33.2]} 29... b4 {[%clk 0:02:57.5]} 30. dxe6+ {[%clk 0:03:29.3]} 30... fxe6
{[%clk 0:02:54.9]} 31. Qxf8 {[%clk 0:03:27.4]} 31... Rxf8 {[%clk 0:02:53.2]} 32.
axb4 {[%clk 0:03:26.8]} 32... Rhh8 {[%clk 0:02:50]} 33. Rxa7 {[%clk 0:03:25.1]}
33... Rc8 {[%clk 0:02:49.9]} 34. Rc1 {[%clk 0:03:23.3]} 34... Rhf8 {[%clk
0:02:41.1]} 35. b5 {[%clk 0:03:20.5]} 1-0

[Event "Live Chess"]
[Site "Chess.com"]
[Date "2024.06.02"]
[Round "-"]
[White "KeithArkell"]
[Black "McFim"]
[Result "1-0"]
[WhiteElo "2433"]
[BlackElo "1639"]
[TimeControl "300"]
[EndTime "20:08:51 PDT"]
[Termination "KeithArkell won on time"]

1. d4 {[%clk 0:04:57.6]} 1... d5 {[%clk 0:04:57.3]} 2. Nf3 {[%clk 0:04:57.1]}
2... Nf6 {[%clk 0:04:54.9]} 3. c4 {[%clk 0:04:57]} 3... e6 {[%clk 0:04:52.9]} 4.
cxd5 {[%clk 0:04:56.2]} 4... exd5 {[%clk 0:04:51.5]} 5. Nc3 {[%clk 0:04:55.9]}
5... c6 {[%clk 0:04:50.1]} 6. Bg5 {[%clk 0:04:55.4]} 6... Bd6 {[%clk 0:04:48]}
7. e3 {[%clk 0:04:54.7]} 7... h6 {[%clk 0:04:44.7]} 8. Bh4 {[%clk 0:04:53.5]}
8... O-O {[%clk 0:04:42.1]} 9. Bd3 {[%clk 0:04:52.6]} 9... Nbd7 {[%clk
0:04:26.9]} 10. O-O {[%clk 0:04:46.5]} 10... Re8 {[%clk 0:04:18.9]} 11. Rb1
{[%clk 0:04:44.6]} 11... a5 {[%clk 0:04:15.9]} 12. a3 {[%clk 0:04:43.6]} 12...
Be7 {[%clk 0:04:00.6]} 13. b4 {[%clk 0:04:41.6]} 13... axb4 {[%clk 0:03:59]} 14.
axb4 {[%clk 0:04:41.1]} 14... b5 {[%clk 0:03:57.2]} 15. Ne5 {[%clk 0:04:40.3]}
15... Bb7 {[%clk 0:03:55.1]} 16. Nxd7 {[%clk 0:04:36.6]} 16... Qxd7 {[%clk
0:03:51.6]} 17. Bxf6 {[%clk 0:04:35.8]} 17... Bxf6 {[%clk 0:03:49.3]} 18. Ne2
{[%clk 0:04:30.1]} 18... Ra7 {[%clk 0:03:39.6]} 19. Ra1 {[%clk 0:04:27.9]} 19...
Rea8 {[%clk 0:03:36.5]} 20. Rxa7 {[%clk 0:04:26.8]} 20... Rxa7 {[%clk
0:03:34.9]} 21. Qc2 {[%clk 0:04:26.3]} 21... Be7 {[%clk 0:03:24.6]} 22. Rb1
{[%clk 0:04:24.2]} 22... Ra4 {[%clk 0:03:15.7]} 23. Nf4 {[%clk 0:04:06.8]} 23...
Rxb4 {[%clk 0:03:09.5]} 24. Rxb4 {[%clk 0:04:05.2]} 24... Bxb4 {[%clk
0:03:07.3]} 25. g3 {[%clk 0:04:03.1]} 25... Bd6 {[%clk 0:02:56.6]} 26. Bh7+
{[%clk 0:04:01.6]} 26... Kf8 {[%clk 0:02:54.6]} 27. Nd3 {[%clk 0:03:47.6]} 27...
Bc8 {[%clk 0:02:36.1]} 28. h4 {[%clk 0:03:40.4]} 28... Qc7 {[%clk 0:02:10.5]}
29. Kg2 {[%clk 0:03:38.1]} 29... Bd7 {[%clk 0:02:06.5]} 30. h5 {[%clk
0:03:32.5]} 30... Qd8 {[%clk 0:02:02.8]} 31. Qa2 {[%clk 0:03:30.2]} 31... Qe8
{[%clk 0:01:50.2]} 32. Qa7 {[%clk 0:03:26.5]} 32... Ke7 {[%clk 0:01:44.1]} 33.
Nc5 {[%clk 0:03:24.5]} 33... Bxc5 {[%clk 0:01:41.9]} 34. Qxc5+ {[%clk
0:03:23.5]} 34... Kd8 {[%clk 0:01:39.3]} 35. Bd3 {[%clk 0:03:22.3]} 35... Qe6
{[%clk 0:01:35.3]} 36. Qb6+ {[%clk 0:03:21.3]} 36... Ke7 {[%clk 0:01:33.2]} 37.
Be2 {[%clk 0:03:13.4]} 37... Qh3+ {[%clk 0:01:07.4]} 38. Kg1 {[%clk 0:03:11]}
38... Qf5 {[%clk 0:00:59.4]} 39. Qc5+ {[%clk 0:03:02.8]} 39... Ke8 {[%clk
0:00:56.9]} 40. g4 {[%clk 0:03:00.2]} 40... Qe6 {[%clk 0:00:52.6]} 41. Qb6
{[%clk 0:02:55.2]} 41... g6 {[%clk 0:00:49.8]} 42. hxg6 {[%clk 0:02:54.1]} 42...
fxg6 {[%clk 0:00:48.3]} 43. Kg2 {[%clk 0:02:50.4]} 43... Kf7 {[%clk 0:00:45.4]}
44. Qb7 {[%clk 0:02:48.6]} 44... Kf6 {[%clk 0:00:39.3]} 45. Kg3 {[%clk
0:02:44.7]} 45... Qd6+ {[%clk 0:00:37]} 46. f4 {[%clk 0:02:43.7]} 46... g5
{[%clk 0:00:33]} 47. Qa8 {[%clk 0:02:32.4]} 47... gxf4+ {[%clk 0:00:30.1]} 48.
exf4 {[%clk 0:02:30.9]} 48... Kg7 {[%clk 0:00:24.9]} 49. Qd8 {[%clk 0:02:28.4]}
49... Qe6 {[%clk 0:00:22.1]} 50. Bf3 {[%clk 0:02:10.7]} 50... Qe1+ {[%clk
0:00:19.1]} 51. Kg2 {[%clk 0:02:08.2]} 51... Qe8 {[%clk 0:00:19]} 52. Qc7 {[%clk
0:02:05.8]} 52... Kf6 {[%clk 0:00:14.7]} 53. f5 {[%clk 0:02:01.5]} 53... Qe7
{[%clk 0:00:10]} 54. Qf4 {[%clk 0:01:58.7]} 54... Kg7 {[%clk 0:00:06.2]} 55. Kg3
{[%clk 0:01:55]} 55... Qf6 {[%clk 0:00:01.9]} 56. Qc7 {[%clk 0:01:52.8]} 56...
Qf7 {[%clk 0:00:00.7]} 57. Kf4 {[%clk 0:01:45.4]} 1-0

[Event "Live Chess"]
[Site "Chess.com"]
[Date "2024.06.02"]
[Round "-"]
[White "GwaryTek"]
[Black "Dhaydon19"]
[Result "0-1"]
[WhiteElo "1897"]
[BlackElo "2686"]
[TimeControl "300"]
[EndTime "20:12:04 PDT"]
[Termination "Dhaydon19 won on time"]

1. d4 {[%clk 0:04:57.5]} 1... e6 {[%clk 0:04:58.6]} 2. c4 {[%clk 0:04:55]} 2...
d5 {[%clk 0:04:57.9]} 3. Nc3 {[%clk 0:04:53.2]} 3... Nf6 {[%clk 0:04:57.3]} 4.
Nf3 {[%clk 0:04:51.7]} 4... dxc4 {[%clk 0:04:56.6]} 5. a4 {[%clk 0:04:49.3]}
5... a6 {[%clk 0:04:56]} 6. e4 {[%clk 0:04:46.4]} 6... Be7 {[%clk 0:04:53.5]} 7.
Bxc4 {[%clk 0:04:43.9]} 7... c5 {[%clk 0:04:52.1]} 8. O-O {[%clk 0:04:39.7]}
8... cxd4 {[%clk 0:04:49.6]} 9. Nxd4 {[%clk 0:04:39.6]} 9... Qc7 {[%clk
0:04:48.5]} 10. Qe2 {[%clk 0:04:37.6]} 10... Nc6 {[%clk 0:04:45.5]} 11. Nxc6
{[%clk 0:04:31.2]} 11... bxc6 {[%clk 0:04:40.9]} 12. Be3 {[%clk 0:04:21.2]}
12... O-O {[%clk 0:04:37]} 13. a5 {[%clk 0:04:20.6]} 13... Nd7 {[%clk
0:04:30.8]} 14. f4 {[%clk 0:03:44.3]} 14... Nf6 {[%clk 0:04:26.5]} 15. Bb6
{[%clk 0:03:33.1]} 15... Qb8 {[%clk 0:04:22.7]} 16. Rad1 {[%clk 0:03:23.5]}
16... Nd7 {[%clk 0:04:20.1]} 17. Rxd7 {[%clk 0:02:22.5]} 17... Bxd7 {[%clk
0:04:17.4]} 18. e5 {[%clk 0:02:05.2]} 18... Bd8 {[%clk 0:04:11.3]} 19. Bc5
{[%clk 0:01:58.2]} 19... Bxa5 {[%clk 0:04:09]} 20. Bd3 {[%clk 0:01:40.1]} 20...
Bb6 {[%clk 0:04:02.7]} 21. b4 {[%clk 0:01:19.2]} 21... a5 {[%clk 0:03:59.1]} 22.
Bxh7+ {[%clk 0:00:55.2]} 22... Kxh7 {[%clk 0:03:56.4]} 23. Qh5+ {[%clk
0:00:54.1]} 23... Kg8 {[%clk 0:03:55.9]} 24. Ne4 {[%clk 0:00:52.1]} 24... Bxc5+
{[%clk 0:03:50.3]} 25. bxc5 {[%clk 0:00:52]} 25... Qb4 {[%clk 0:03:47.1]} 26.
Ng5 {[%clk 0:00:40.8]} 26... Qxc5+ {[%clk 0:03:45.1]} 27. Kh1 {[%clk 0:00:39]}
27... Qc2 {[%clk 0:03:37.4]} 28. f5 {[%clk 0:00:35.8]} 28... Rfe8 {[%clk
0:03:30.6]} 29. Qxf7+ {[%clk 0:00:25.8]} 29... Kh8 {[%clk 0:03:29.5]} 30. Qh5+
{[%clk 0:00:20.5]} 30... Kg8 {[%clk 0:03:28.2]} 31. Qh7+ {[%clk 0:00:14.8]}
31... Kf8 {[%clk 0:03:22.2]} 32. fxe6+ {[%clk 0:00:14.3]} 32... Ke7 {[%clk
0:03:21.8]} 33. Qxc2 {[%clk 0:00:12.2]} 33... Bxe6 {[%clk 0:03:14.5]} 34. Qc5+
{[%clk 0:00:11.3]} 34... Kd7 {[%clk 0:03:13]} 35. Rd1+ {[%clk 0:00:10.4]} 35...
Kc7 {[%clk 0:03:11.1]} 36. Qd6+ {[%clk 0:00:08.9]} 36... Kb7 {[%clk 0:03:05.2]}
37. Rb1+ {[%clk 0:00:07]} 37... Kc8 {[%clk 0:03:04.2]} 38. Nxe6 {[%clk
0:00:03.9]} 38... Rxe6 {[%clk 0:02:58.8]} 39. Qxe6+ {[%clk 0:00:03.3]} 39... Kc7
{[%clk 0:02:58.5]} 40. Qd6+ {[%clk 0:00:02.9]} 40... Kc8 {[%clk 0:02:58]} 41.
Rb6 {[%clk 0:00:01.4]} 41... Ra7 {[%clk 0:02:56.8]} 42. Rxc6+ {[%clk 0:00:00.6]}
42... Kb7 {[%clk 0:02:55.5]} 0-1

[Event "Live Chess"]
[Site "Chess.com"]
[Date "2024.06.02"]
[Round "-"]
[White "juniortay"]
[Black "ShanthamGrarks"]
[Result "1-0"]
[WhiteElo "2426"]
[BlackElo "1905"]
[TimeControl "300"]
[EndTime "20:12:33 PDT"]
[Termination "juniortay won by resignation"]

1. e4 {[%clk 0:04:57.9]} 1... e6 {[%clk 0:04:55.1]} 2. Nf3 {[%clk 0:04:56.9]}
2... b6 {[%clk 0:04:48]} 3. Nc3 {[%clk 0:04:56.8]} 3... Bb7 {[%clk 0:04:47.2]}
4. a3 {[%clk 0:04:55.5]} 4... c5 {[%clk 0:04:46.3]} 5. d4 {[%clk 0:04:51.6]}
5... cxd4 {[%clk 0:04:43.5]} 6. Nxd4 {[%clk 0:04:51.5]} 6... Nc6 {[%clk
0:04:42.2]} 7. Nxc6 {[%clk 0:04:50.3]} 7... dxc6 {[%clk 0:04:38.2]} 8. Bd3
{[%clk 0:04:50.2]} 8... Nf6 {[%clk 0:04:35.8]} 9. O-O {[%clk 0:04:49.4]} 9...
Be7 {[%clk 0:04:33.4]} 10. e5 {[%clk 0:04:48.7]} 10... Nd5 {[%clk 0:04:32.2]}
11. Ne4 {[%clk 0:04:48.2]} 11... c5 {[%clk 0:04:23.7]} 12. Qg4 {[%clk
0:04:45.1]} 12... O-O {[%clk 0:04:16.6]} 13. Bh6 {[%clk 0:04:39.3]} 13... g6
{[%clk 0:04:11.9]} 14. Bxf8 {[%clk 0:04:37.8]} 14... Qxf8 {[%clk 0:04:08.5]} 15.
Rad1 {[%clk 0:04:36.7]} 15... Qg7 {[%clk 0:04:03.5]} 16. Qg3 {[%clk 0:04:33.2]}
16... Rd8 {[%clk 0:03:57.3]} 17. c4 {[%clk 0:04:24.5]} 17... Nc7 {[%clk
0:03:49.8]} 18. Bc2 {[%clk 0:04:23.8]} 18... Rd4 {[%clk 0:03:43.7]} 19. Rxd4
{[%clk 0:04:18.3]} 19... cxd4 {[%clk 0:03:43.2]} 20. Rd1 {[%clk 0:04:17.9]}
20... Bxe4 {[%clk 0:03:38.5]} 21. Bxe4 {[%clk 0:04:16.5]} 21... Na6 {[%clk
0:03:24.8]} 22. b4 {[%clk 0:04:09.2]} 22... Nxb4 {[%clk 0:03:10.6]} 23. axb4
{[%clk 0:04:06.7]} 23... Bxb4 {[%clk 0:03:08.8]} 24. Rxd4 {[%clk 0:04:05.8]}
24... h5 {[%clk 0:03:05.8]} 25. h4 {[%clk 0:04:03.8]} 25... Bc5 {[%clk 0:03:04]}
26. Rd7 {[%clk 0:04:02.4]} 26... a5 {[%clk 0:02:55.3]} 27. Ra7 {[%clk
0:04:01.4]} 27... Bd4 {[%clk 0:02:49]} 28. Qg5 {[%clk 0:03:50.6]} 28... Bxe5
{[%clk 0:02:39.2]} 29. Ra8+ {[%clk 0:03:48.6]} 29... Kh7 {[%clk 0:02:37.3]} 30.
Qxh5+ {[%clk 0:03:46.6]} 30... Qh6 {[%clk 0:02:34.1]} 31. Qxe5 {[%clk
0:03:45.7]} 1-0

[Event "Live Chess"]
[Site "Chess.com"]
[Date "2024.06.02"]
[Round "-"]
[White "McFim"]
[Black "Mangoalo"]
[Result "1-0"]
[WhiteElo "1640"]
[BlackElo "1068"]
[TimeControl "300"]
[EndTime "20:12:44 PDT"]
[Termination "McFim won by resignation"]

1. e4 {[%clk 0:04:57.5]} 1... e5 {[%clk 0:04:57.9]} 2. Nf3 {[%clk 0:04:55.4]}
2... Nc6 {[%clk 0:04:57.6]} 3. Bb5 {[%clk 0:04:53.2]} 3... a6 {[%clk 0:04:55.5]}
4. Ba4 {[%clk 0:04:51.5]} 4... b5 {[%clk 0:04:54]} 5. Bb3 {[%clk 0:04:49.7]}
5... Bc5 {[%clk 0:04:53.9]} 6. O-O {[%clk 0:04:47.2]} 6... Nf6 {[%clk
0:04:51.6]} 7. Nxe5 {[%clk 0:04:43.1]} 7... Nxe5 {[%clk 0:04:48.1]} 8. d4 {[%clk
0:04:41.6]} 8... Bxd4 {[%clk 0:04:46.1]} 9. Qxd4 {[%clk 0:04:39.7]} 9... Qe7
{[%clk 0:04:45]} 10. f4 {[%clk 0:04:34.2]} 10... Nc6 {[%clk 0:04:42.8]} 11. Qd3
{[%clk 0:04:21.7]} 11... O-O {[%clk 0:04:34.3]} 12. Nc3 {[%clk 0:04:18.7]} 12...
d6 {[%clk 0:04:32.1]} 13. h3 {[%clk 0:04:14.9]} 13... Be6 {[%clk 0:04:30.5]} 14.
Bd5 {[%clk 0:03:53.5]} 14... Nxd5 {[%clk 0:04:27.5]} 15. exd5 {[%clk 0:03:51.5]}
15... Bxh3 {[%clk 0:04:18.1]} 16. Qxh3 {[%clk 0:03:44.6]} 16... Nd4 {[%clk
0:04:12.3]} 17. Qd3 {[%clk 0:03:40.4]} 1-0

[Event "Live Chess"]
[Site "Chess.com"]
[Date "2024.06.02"]
[Round "-"]
[White "Dhaydon19"]
[Black "booktrunk"]
[Result "1-0"]
[WhiteElo "2686"]
[BlackElo "1510"]
[TimeControl "300"]
[EndTime "20:12:49 PDT"]
[Termination "Dhaydon19 won by resignation"]

1. d4 {[%clk 0:04:58.2]} 1... e6 {[%clk 0:04:55.4]} 2. Nf3 {[%clk 0:04:56.8]}
2... d5 {[%clk 0:04:54.7]} 3. g3 {[%clk 0:04:56]} 3... c5 {[%clk 0:04:53.6]} 4.
c3 {[%clk 0:04:54.3]} 4... cxd4 {[%clk 0:04:51.4]} 5. cxd4 {[%clk 0:04:54]} 5...
Bb4+ {[%clk 0:04:50.3]} 6. Bd2 {[%clk 0:04:52.7]} 6... Bxd2+ {[%clk 0:04:49.2]}
7. Qxd2 {[%clk 0:04:52.4]} 7... Nf6 {[%clk 0:04:48.1]} 8. Nc3 {[%clk 0:04:52]}
8... Qa5 {[%clk 0:04:39.2]} 9. Bg2 {[%clk 0:04:48.9]} 9... Ne4 {[%clk
0:04:37.6]} 10. Nxe4 {[%clk 0:04:47.5]} 10... Qxd2+ {[%clk 0:04:34]} 11. Nexd2
{[%clk 0:04:46.6]} 1-0

[Event "Live Chess"]
[Site "Chess.com"]
[Date "2024.06.02"]
[Round "-"]
[White "NeilDruggan73"]
[Black "Mikhail_Golubev"]
[Result "0-1"]
[WhiteElo "1783"]
[BlackElo "2545"]
[TimeControl "300"]
[EndTime "20:14:23 PDT"]
[Termination "Mikhail_Golubev won by resignation"]

1. d4 {[%clk 0:04:57.1]} 1... d6 {[%clk 0:04:54.9]} 2. Bg5 {[%clk 0:04:54.9]}
2... Nd7 {[%clk 0:04:43.1]} 3. e4 {[%clk 0:04:51.4]} 3... Ngf6 {[%clk
0:04:41.8]} 4. Nd2 {[%clk 0:04:48.4]} 4... e5 {[%clk 0:04:39.5]} 5. Ngf3 {[%clk
0:04:43.7]} 5... exd4 {[%clk 0:04:29.6]} 6. Nxd4 {[%clk 0:04:41.7]} 6... g6
{[%clk 0:04:28.3]} 7. Bc4 {[%clk 0:04:37.4]} 7... Bg7 {[%clk 0:04:24.7]} 8. O-O
{[%clk 0:04:33.8]} 8... O-O {[%clk 0:04:23.9]} 9. c3 {[%clk 0:04:30.2]} 9... h6
{[%clk 0:04:13.2]} 10. Bh4 {[%clk 0:04:27.8]} 10... Re8 {[%clk 0:03:57.9]} 11.
Qb3 {[%clk 0:04:13.3]} 11... Ne5 {[%clk 0:03:44.9]} 12. f4 {[%clk 0:04:02.1]}
12... Nxc4 {[%clk 0:03:39.9]} 13. Qxc4 {[%clk 0:04:00.9]} 13... d5 {[%clk
0:03:30.5]} 14. Qd3 {[%clk 0:03:41.6]} 14... dxe4 {[%clk 0:03:24.2]} 15. Nxe4
{[%clk 0:03:36.9]} 15... Bf5 {[%clk 0:03:11.6]} 16. Nxf6+ {[%clk 0:03:25.9]}
16... Bxf6 {[%clk 0:03:08.2]} 17. Bxf6 {[%clk 0:03:16.3]} 17... Bxd3 {[%clk
0:03:04.8]} 18. Bxd8 {[%clk 0:03:14.3]} 18... Bxf1 {[%clk 0:03:00.5]} 19. Rxf1
{[%clk 0:03:10.3]} 19... Raxd8 {[%clk 0:02:58.2]} 20. b4 {[%clk 0:03:06.9]}
20... Re3 {[%clk 0:02:47.8]} 21. Rf3 {[%clk 0:02:53.1]} 21... Rxf3 {[%clk
0:02:45.9]} 22. Nxf3 {[%clk 0:02:49.9]} 22... Rd3 {[%clk 0:02:42.9]} 23. c4
{[%clk 0:02:46.9]} 23... Ra3 {[%clk 0:02:38.8]} 24. Nd4 {[%clk 0:02:42.6]} 24...
Rxa2 {[%clk 0:02:36.4]} 25. Nb5 {[%clk 0:02:42.3]} 25... c6 {[%clk 0:02:31.5]}
26. Nd6 {[%clk 0:02:40.2]} 26... Rb2 {[%clk 0:02:22.6]} 27. b5 {[%clk
0:02:35.2]} 27... cxb5 {[%clk 0:02:20.7]} 28. cxb5 {[%clk 0:02:28.8]} 28... a5
{[%clk 0:02:16.5]} 29. Nxb7 {[%clk 0:02:24.7]} 29... a4 {[%clk 0:02:14.3]} 30.
Nc5 {[%clk 0:02:20.9]} 30... a3 {[%clk 0:02:12.9]} 31. Nd3 {[%clk 0:02:00.2]}
31... Rb1+ {[%clk 0:02:11.4]} 32. Kf2 {[%clk 0:01:58.2]} 32... a2 {[%clk
0:02:11.3]} 0-1

[Event "Live Chess"]
[Site "Chess.com"]
[Date "2024.06.02"]
[Round "-"]
[White "RafaelRony"]
[Black "grillage"]
[Result "0-1"]
[WhiteElo "1063"]
[BlackElo "1860"]
[TimeControl "300"]
[EndTime "20:14:44 PDT"]
[Termination "grillage won on time"]

1. e4 {[%clk 0:04:57.1]} 1... d5 {[%clk 0:04:58.7]} 2. exd5 {[%clk 0:04:55.2]}
2... Qxd5 {[%clk 0:04:58.1]} 3. Nc3 {[%clk 0:04:53.9]} 3... Qd8 {[%clk
0:04:56.8]} 4. Nf3 {[%clk 0:04:52.8]} 4... Nf6 {[%clk 0:04:55.7]} 5. Bc4 {[%clk
0:04:51.4]} 5... a6 {[%clk 0:04:54.1]} 6. a4 {[%clk 0:04:49.2]} 6... Nc6 {[%clk
0:04:52.3]} 7. O-O {[%clk 0:04:43.6]} 7... Bg4 {[%clk 0:04:47.6]} 8. h3 {[%clk
0:04:38.7]} 8... Bh5 {[%clk 0:04:44.7]} 9. Re1 {[%clk 0:04:37]} 9... e6 {[%clk
0:04:42.2]} 10. d3 {[%clk 0:04:32.4]} 10... Be7 {[%clk 0:04:39.8]} 11. Be3
{[%clk 0:04:08.5]} 11... O-O {[%clk 0:04:33.8]} 12. g4 {[%clk 0:03:34.1]} 12...
Bg6 {[%clk 0:04:24.6]} 13. Kg2 {[%clk 0:03:27.2]} 13... Bd6 {[%clk 0:03:40.6]}
14. g5 {[%clk 0:03:15.8]} 14... Nh5 {[%clk 0:03:35.3]} 15. d4 {[%clk 0:02:53.9]}
15... Nf4+ {[%clk 0:03:29]} 16. Bxf4 {[%clk 0:02:24.8]} 16... Bxf4 {[%clk
0:03:27.1]} 17. h4 {[%clk 0:02:19.7]} 17... Bh5 {[%clk 0:03:22.3]} 18. Re4
{[%clk 0:02:01.8]} 18... Bd6 {[%clk 0:03:02.4]} 19. Be2 {[%clk 0:01:23.9]} 19...
Bg6 {[%clk 0:02:56.5]} 20. Re3 {[%clk 0:01:17.8]} 20... Ne7 {[%clk 0:02:53.4]}
21. Bd3 {[%clk 0:01:14.7]} 21... Bxd3 {[%clk 0:02:50.9]} 22. Qxd3 {[%clk
0:01:14.6]} 22... Nf5 {[%clk 0:02:49.4]} 23. Ree1 {[%clk 0:01:09.4]} 23... c6
{[%clk 0:02:46.4]} 24. Rh1 {[%clk 0:01:07.7]} 24... Bc7 {[%clk 0:02:41]} 25. Rh2
{[%clk 0:01:06.4]} 25... Bb6 {[%clk 0:02:38.4]} 26. Rhh1 {[%clk 0:01:03.2]}
26... Nxd4 {[%clk 0:02:36.2]} 27. Rad1 {[%clk 0:00:56.4]} 27... Nxf3 {[%clk
0:02:34]} 28. Qxf3 {[%clk 0:00:49.5]} 28... Qc7 {[%clk 0:02:26.9]} 29. h5 {[%clk
0:00:47.5]} 29... Rad8 {[%clk 0:02:24]} 30. Rxd8 {[%clk 0:00:30]} 30... Qxd8
{[%clk 0:02:20]} 31. Qg4 {[%clk 0:00:17.5]} 31... Qd2 {[%clk 0:02:11.7]} 32. Rf1
{[%clk 0:00:08.3]} 32... Rd8 {[%clk 0:02:07]} 33. h6 {[%clk 0:00:07.5]} 33... g6
{[%clk 0:02:02.3]} 34. Qf3 {[%clk 0:00:03.2]} 34... Qxg5+ {[%clk 0:01:59]} 35.
Kh1 {[%clk 0:00:01.1]} 35... Qxh6+ {[%clk 0:01:57.9]} 36. Kg2 {[%clk 0:00:00.4]}
36... Qg5+ {[%clk 0:01:55.8]} 37. Qg3 {[%clk 0:00:00.1]} 37... Qxg3+ {[%clk
0:01:53.8]} 0-1

[Event "Live Chess"]
[Site "Chess.com"]
[Date "2024.06.02"]
[Round "-"]
[White "NeilDruggan73"]
[Black "RafaelRony"]
[Result "1-0"]
[WhiteElo "1783"]
[BlackElo "1063"]
[TimeControl "300"]
[EndTime "20:17:04 PDT"]
[Termination "NeilDruggan73 won by resignation"]

1. d4 {[%clk 0:04:56.5]} 1... e6 {[%clk 0:04:59.5]} 2. Nf3 {[%clk 0:04:53.6]}
2... d5 {[%clk 0:04:57.4]} 3. Bg5 {[%clk 0:04:52.1]} 3... Be7 {[%clk 0:04:54.9]}
4. Bf4 {[%clk 0:04:51.1]} 4... Nf6 {[%clk 0:04:51.5]} 5. Nbd2 {[%clk 0:04:48]}
5... Bd6 {[%clk 0:04:50.7]} 6. Bg3 {[%clk 0:04:44.9]} 6... c5 {[%clk 0:04:41.6]}
7. e3 {[%clk 0:04:44]} 7... Nc6 {[%clk 0:04:37.6]} 8. c3 {[%clk 0:04:41]} 8...
cxd4 {[%clk 0:04:22.1]} 9. Nxd4 {[%clk 0:04:35.4]} 9... Qc7 {[%clk 0:04:19.8]}
10. Nb5 {[%clk 0:04:32.4]} 10... Bxg3 {[%clk 0:04:12.1]} 11. Nxc7+ {[%clk
0:04:30.2]} 11... Bxc7 {[%clk 0:04:12]} 12. Bb5 {[%clk 0:04:24.3]} 12... a6
{[%clk 0:04:09.9]} 13. Ba4 {[%clk 0:04:20.6]} 13... b5 {[%clk 0:04:08]} 14. Bc2
{[%clk 0:04:19.1]} 14... Bd6 {[%clk 0:04:06.6]} 15. Nf3 {[%clk 0:04:16.9]} 15...
Bd7 {[%clk 0:04:05.7]} 16. Nd4 {[%clk 0:04:13.1]} 16... Rc8 {[%clk 0:04:05.6]}
17. a4 {[%clk 0:04:05.7]} 17... bxa4 {[%clk 0:04:02.8]} 18. Bxa4 {[%clk
0:04:02.3]} 18... Nxd4 {[%clk 0:03:58.7]} 19. Bxd7+ {[%clk 0:03:59.4]} 19...
Nxd7 {[%clk 0:03:58.6]} 20. cxd4 {[%clk 0:03:57.7]} 20... Rc6 {[%clk 0:03:54.9]}
21. O-O {[%clk 0:03:56.4]} 1-0